bitfinex/quotes_SOLUSD_20250611
["timestamp","ask_amount","ask_price","bid_price","bid_amount"]
[1749668559136,14.46085943,163.0,162.98,2.01082266]
[1749668559354,26.0,163.04,162.96,14.46085943]
[1749668559536,14.46085943,163.01,162.97,14.46085943]
[1749668560049,14.46085943,163.01,162.98,2.01057696]
[1749668560257,14.46085943,163.01,162.97,14.46085943]
[1749668560634,14.46085943,163.01,162.98,2.01152123]
[1749668560851,14.46085943,163.01,162.99,2.01152055]
[1749668561059,14.46085943,163.01,162.97,14.46085943]
[1749668561446,14.46085943,163.01,162.98,2.01151368]
[1749668561649,14.46085943,163.01,162.95,0.42648471]
[1749668561650,14.46085943,163.01,162.99,2.01097729]
[1749668561959,14.46085943,163.0,162.95,0.42648471]
[1749668562158,14.46085943,163.0,162.96,14.46085943]
[1749668562350,14.46085943,163.0,162.97,2.00911327]
[1749668562550,14.46085943,163.0,162.98,2.00949641]
[1749668562761,14.46085943,163.0,162.99,2.00957967]
[1749668562967,14.46085943,163.01,162.96,14.46085943]
[1749668563145,14.46085943,163.01,162.97,2.00994297]
[1749668563461,14.46085943,162.98,162.93,14.46085943]
[1749668563663,14.46085943,162.98,162.94,16.47191781]
[1749668563974,14.46085943,162.98,162.94,14.46085943]
[1749668564139,14.46085943,162.98,162.95,2.01128621]
[1749668564338,14.46085943,162.98,162.92,0.14216157]
[1749668564339,14.46085943,162.98,162.96,2.01148675]
[1749668564542,14.46085943,162.98,162.94,14.46085943]
[1749668564741,14.46085943,162.98,162.95,2.01179297]
[1749668564956,14.46085943,162.98,162.94,14.46085943]
[1749668565349,14.46085943,162.98,162.95,2.01192756]
[1749668565662,26.0,163.0,162.94,14.46085943]
[1749668565871,14.46085943,162.98,162.95,2.01170826]
[1749668566039,14.46085943,162.98,162.96,2.0251273]
[1749668566240,14.46085943,162.98,162.97,2.024874]
[1749668566440,26.0,163.0,162.97,2.02504637]
[1749668566661,1.6438,163.05,162.98,2.02504396]
[1749668566861,14.46085943,163.04,162.99,16.48590339]
[1749668567047,14.46085943,163.04,162.99,14.46085943]
[1749668567250,14.46085943,163.04,163.0,2.02364057]
[1749668567470,14.46085943,163.03,163.01,2.02350877]
[1749668567653,14.46085943,163.03,162.99,14.46085943]
[1749668567654,14.46085943,163.03,163.02,2.02341988]
[1749668568164,26.0,163.04,163.02,2.02300297]
[1749668568349,3.05176095,163.07,163.01,14.46085943]
[1749668568550,26.0,163.06,163.02,2.02242247]
[1749668568757,14.46085943,163.04,163.03,2.02242247]
[1749668569071,8.572,163.09,163.03,2.02242247]
[1749668569072,18.64964886,163.08,163.03,2.02220237]
[1749668569280,14.46085943,163.04,162.98,14.74518257]
[1749668569447,14.46085943,163.03,162.99,2.02465711]
[1749668569648,14.46085943,163.03,163.0,2.02465713]
[1749668569959,14.46085943,163.03,163.01,2.02465713]
[1749668570162,14.46085943,163.03,163.02,2.02502696]
[1749668570369,14.46085943,163.03,163.02,2.02524777]
[1749668570673,14.46085943,163.03,162.97,1.6393]
[1749668570856,14.46085943,163.01,162.97,1.6393]
[1749668571266,14.46085943,163.01,162.98,2.02574787]
[1749668571565,14.46085943,163.01,162.99,2.0259212]
[1749668571765,26.0,163.06,163.0,2.02598486]
[1749668571973,14.46085943,163.01,162.97,1.6393]
[1749668572170,14.46085943,163.01,162.98,2.02643686]
[1749668572352,14.46085943,163.01,162.97,1.6393]
[1749668572766,14.46085943,163.01,162.98,2.02635355]
[1749668572978,14.46085943,163.01,162.99,2.02563671]
[1749668573154,14.46085943,163.01,163.0,2.02565314]
[1749668573354,14.46085943,163.01,163.0,2.02564928]
[1749668573857,14.46085943,163.01,162.96,0.28432314]
[1749668574061,14.46085943,162.98,162.97,2.02582271]
[1749668574263,14.46085943,162.98,162.96,0.28432314]
[1749668574557,26.0,163.02,162.97,2.02654076]
[1749668574764,14.46085943,162.98,162.92,28.7132]
[1749668574973,14.46085943,162.97,162.93,2.02701147]
[1749668575166,14.46085943,162.97,162.94,2.027115]
[1749668575369,14.46085943,162.97,162.95,2.02510453]
[1749668575686,14.46085943,162.98,162.96,2.02523129]
[1749668575868,14.46085943,162.99,162.97,2.02532101]
[1749668576181,14.46085943,162.98,162.95,0.42648471]
[1749668576688,26.0,163.01,162.96,2.02469996]
[1749668576981,26.0,163.01,162.93,0.42648471]
[1749668577184,26.0,163.01,162.94,2.02335969]
[1749668577370,14.46085943,162.96,162.93,0.14216157]
[1749668577567,14.46085943,162.96,162.93,0.42648471]
[1749668577773,14.46085943,162.96,162.94,2.02338393]
[1749668578079,14.46085943,162.96,162.93,0.42648471]
[1749668578381,26.0,163.01,162.93,0.42648471]
[1749668578578,14.46085943,162.96,162.94,2.02263142]
[1749668578786,14.46085943,162.96,162.93,0.42648471]
[1749668579083,14.46085943,162.96,162.94,2.01857069]
[1749668579288,14.46085943,162.96,162.95,2.0185025]
[1749668579591,14.46085943,162.96,162.93,0.42648471]
[1749668579793,14.46085943,162.96,162.94,2.01796075]
[1749668579967,14.46085943,162.96,162.93,0.42648471]
[1749668579968,14.46085943,162.96,162.95,2.01779471]
[1749668580168,14.46085943,162.96,162.93,0.42648471]
[1749668580463,14.46085943,162.96,162.94,2.01796055]
[1749668580676,26.0,163.01,162.95,2.01839595]
[1749668580874,26.0,163.01,162.96,2.01835553]
[1749668581073,14.46085943,162.97,162.89,20.98205943]
[1749668581278,14.46085943,162.92,162.9,2.01958238]
[1749668581478,14.46085943,162.92,162.89,0.42648471]
[1749668581670,14.46085943,162.93,162.9,2.02666382]
[1749668581870,26.0,162.96,162.91,2.02666382]
[1749668582089,26.0,162.96,162.92,2.02666382]
[1749668582388,26.0,162.96,162.9,14.46085943]
[1749668582389,14.46085943,162.94,162.93,2.02702921]
[1749668582589,14.46085943,162.94,162.93,2.02767519]
[1749668582760,14.46085943,162.94,162.93,2.02770987]
[1749668582959,14.46085943,162.94,162.93,2.02743287]
[1749668583186,26.0,162.96,162.93,2.02739132]
[1749668583393,14.46085943,162.94,162.9,14.46085943]
[1749668583667,14.46085943,162.94,162.91,2.02755949]
[1749668583872,14.46085943,162.94,162.92,2.02775068]
[1749668584076,14.46085943,162.94,162.93,2.02776586]
[1749668584374,14.46085943,162.94,162.93,2.02849061]
[1749668584887,14.46085943,162.94,162.9,14.46085943]
[1749668585187,26.0,162.96,162.89,14.88734414]
[1749668585389,26.0,162.91,162.89,14.88734414]
[1749668585574,26.0,162.91,162.9,0.42648471]
[1749668585768,26.0,162.91,162.9,16.9155425]
[1749668585974,26.0,162.91,162.9,16.91564642]
[1749668586174,26.0,162.91,162.9,14.88734414]
[1749668586688,26.0,162.91,162.9,2.45564748]
[1749668586903,14.46085943,162.91,162.9,2.03755091]
[1749668587073,14.46085943,162.92,162.9,2.03840934]
[1749668587314,26.0,162.93,162.91,2.03836954]
[1749668587482,26.0,162.93,162.91,2.03856661]
[1749668587672,26.0,162.93,162.9,0.28432314]
[1749668587869,14.46085943,162.94,162.91,2.03893075]
[1749668588170,14.46085943,162.94,162.92,2.03936868]
[1749668588362,22.19375943,163.04,162.93,16.50022696]
[1749668588600,14.46085943,163.0,162.96,14.46085943]
[1749668588762,14.46085943,163.0,162.95,0.28432314]
[1749668588968,14.46085943,163.0,162.96,2.03768123]
[1749668589180,14.46085943,163.0,162.97,2.0377886]
[1749668589378,14.46085943,163.0,162.98,2.03736512]
[1749668589589,14.46085943,163.0,162.99,2.03736512]
[1749668589788,14.46085943,163.0,162.99,2.03744919]
[1749668590101,14.46085943,163.0,162.95,14.74518257]
[1749668590592,14.46085943,162.99,162.96,2.03258108]
[1749668590781,14.46085943,162.99,162.97,2.03258108]
[1749668591102,14.46085943,162.99,162.98,2.02647768]
[1749668591605,14.46085943,162.99,162.98,2.02554216]
[1749668591905,14.46085943,162.99,162.98,2.02552566]
[1749668592333,14.46085943,162.99,162.98,2.02515414]
[1749668592614,14.46085943,163.0,162.98,2.02487811]
[1749668592899,14.46085943,163.0,162.95,14.74518257]
[1749668592900,14.46085943,162.99,162.93,14.46085943]
[1749668593103,14.46085943,162.97,162.94,2.02499359]
[1749668593401,14.46085943,162.97,162.95,2.02482284]
[1749668593586,26.0,163.01,162.96,2.02482284]
[1749668593791,14.46085943,162.97,162.88,16.00045943]
[1749668594111,14.46085943,162.93,162.89,2.02542071]
[1749668594417,14.46085943,162.92,162.9,2.0255946]
[1749668594587,14.46085943,162.92,162.91,2.0255946]
[1749668594790,14.46085943,162.92,162.91,2.02592281]
[1749668595089,14.46085943,162.92,162.88,16.00045943]
[1749668595399,14.46085943,162.92,162.89,2.02626715]
[1749668595600,14.46085943,162.92,162.87,41.80085943]
[1749668595798,14.46085943,162.92,162.88,16.48748997]
[1749668595982,14.46085943,162.92,162.89,2.0264487]
[1749668596298,14.46085943,162.92,162.9,2.02666696]
[1749668596497,14.46085943,162.92,162.91,2.02667101]
[1749668596688,14.46085943,162.92,162.91,2.02668207]
[1749668596885,7.6635,162.98,162.91,2.02668393]
[1749668597086,14.46085943,162.93,162.88,0.42648471]
[1749668597292,14.46085943,162.92,162.89,2.02623897]
[1749668597496,14.46085943,162.93,162.88,14.88734414]
[1749668597698,14.46085943,162.93,162.89,16.48754964]
[1749668597997,40.46085943,162.93,162.9,2.02653964]
[1749668598199,40.46085943,162.93,162.91,2.026548]
[1749668598406,40.46085943,162.93,162.92,2.0269593]
[1749668598630,40.46085943,162.93,162.92,2.02680912]
[1749668598790,40.46085943,162.93,162.89,14.46085943]
[1749668599101,26.0,162.93,162.89,14.46085943]
[1749668599400,40.46085943,162.93,162.9,2.02639085]
[1749668599605,40.46085943,162.93,162.88,0.42648471]
[1749668599606,40.46085943,162.93,162.91,2.02647251]
[1749668599822,40.46085943,162.93,162.92,2.02647251]
[1749668600180,40.46085943,162.93,162.85,18.64964886]
[1749668600181,40.46085943,162.93,162.87,0.14216157]
[1749668600382,14.46085943,162.91,162.88,2.03811722]
[1749668600722,14.46085943,162.92,162.89,2.03805678]
[1749668600897,14.46085943,162.92,162.87,14.603021]
[1749668601098,14.46085943,162.92,162.88,14.46085943]
[1749668601390,14.46085943,162.92,162.89,2.03697291]
[1749668601589,14.46085943,162.92,162.9,2.03656592]
[1749668601811,14.46085943,162.92,162.91,2.03660037]
[1749668602018,14.46085943,162.92,162.91,2.03653781]
[1749668602181,14.46085943,162.92,162.91,2.0426471]
[1749668602615,14.46085943,162.92,162.91,2.04254701]
[1749668603151,14.46085943,162.92,162.91,2.04306005]
[1749668603350,14.46085943,162.92,162.88,14.46085943]
[1749668603521,14.46085943,162.92,162.89,2.04353706]
[1749668603718,14.46085943,162.94,162.9,16.50439649]
[1749668604029,7.6635,162.98,162.89,0.28432314]
[1749668604030,14.46085943,162.96,162.92,14.46085943]
[1749668604245,14.46085943,162.94,162.93,2.0441048]
[1749668604440,14.46085943,162.94,162.89,14.74518257]
[1749668604661,14.46085943,162.94,162.9,2.0443556]
[1749668604952,14.46085943,162.92,162.91,2.04429385]
[1749668605133,14.46085943,162.92,162.91,2.04479737]
[1749668605322,14.46085943,162.92,162.88,0.28432314]
[1749668605533,26.0,162.97,162.89,2.04478616]
[1749668605728,40.46085943,162.95,162.9,14.46085943]
[1749668605927,40.46085943,162.95,162.88,0.28432314]
[1749668606130,14.46085943,162.93,162.89,16.50508307]
[1749668606328,27.564,162.98,162.9,2.04450265]
[1749668606538,14.46085943,162.93,162.89,14.46085943]
[1749668606728,14.46085943,162.94,162.91,2.04437682]
[1749668606913,14.46085943,162.94,162.89,14.46085943]
[1749668607331,14.46085943,162.94,162.9,2.04501923]
[1749668607529,14.46085943,162.94,162.91,2.04504028]
[1749668608314,14.46085943,162.94,162.92,2.04504028]
[1749668608517,14.46085943,162.94,162.93,2.04504028]
[1749668608754,14.46085943,162.94,162.93,2.04598856]
[1749668608951,26.0,162.96,162.82,11.34311928]
[1749668608952,1.5946,162.9,162.82,11.34311928]
[1749668609256,14.46085943,162.88,162.83,14.46085943]
[1749668609426,26.0,162.9,162.84,2.04816285]
[1749668609628,26.0,162.9,162.85,2.02438992]
[1749668609819,26.0,162.92,162.86,2.02434384]
[1749668610035,14.46085943,162.89,162.87,2.02438155]
[1749668610245,14.46085943,162.88,162.81,0.28432314]
[1749668610450,14.46085943,162.88,162.83,14.46085943]
[1749668610850,14.46085943,162.88,162.82,0.28432314]
[1749668611049,14.46085943,162.88,162.83,14.46085943]
[1749668611250,26.0,162.92,162.82,0.14216157]
[1749668611494,26.0,162.92,162.83,14.46085943]
[1749668611656,26.0,162.92,162.82,0.28432314]
[1749668611858,14.46085943,162.89,162.85,14.46085943]
[1749668612055,14.46085943,162.89,162.83,0.14216157]
[1749668612263,14.46085943,162.89,162.84,14.46085943]
[1749668613353,26.0,162.92,162.85,14.46085943]
[1749668613566,14.46085943,162.89,162.85,14.46085943]
[1749668613869,40.46085943,162.92,162.86,0.42648471]
[1749668614051,14.46085943,162.95,162.86,0.42648471]
[1749668614243,14.46085943,162.94,162.9,14.46085943]
[1749668614557,14.46085943,162.94,162.86,0.42648471]
[1749668614756,1.6117,162.98,162.92,14.46085943]
[1749668614970,40.46085943,162.96,162.92,14.46085943]
[1749668615279,14.46085943,162.95,162.89,1.93238471]
[1749668615459,26.0,162.96,162.91,14.46085943]
[1749668615655,40.46085943,162.96,162.91,14.46085943]
[1749668616881,14.46085943,162.97,162.93,14.46085943]
[1749668617053,14.46085943,162.98,162.94,14.46085943]
[1749668618665,1.6147,163.02,162.94,14.46085943]
[1749668618666,26.0,163.01,162.94,14.46085943]
[1749668618864,14.46085943,162.98,162.93,14.46085943]
[1749668619281,14.46085943,162.98,162.94,14.46085943]
[1749668619773,26.0,163.01,162.94,14.46085943]
[1749668619975,14.46085943,162.99,162.95,14.46085943]
[1749668620367,14.46085943,162.98,162.94,14.46085943]
[1749668620883,14.46085943,162.99,162.95,14.46085943]
[1749668622654,26.0,163.01,162.95,14.46085943]
[1749668622975,14.46085943,162.99,162.95,14.46085943]
[1749668623167,14.46085943,162.99,162.91,0.42648471]
[1749668623366,14.46085943,162.98,162.91,0.42648471]
[1749668623568,14.46085943,162.98,162.93,14.46085943]
[1749668624991,14.46085943,162.97,162.93,14.46085943]
[1749668625581,14.46085943,162.98,162.91,0.42648471]
[1749668625768,14.46085943,162.98,162.94,14.46085943]
[1749668628186,14.46085943,162.97,162.93,14.46085943]
[1749668628365,14.46085943,162.98,162.94,14.46085943]
[1749668628977,26.0,163.01,162.95,14.46085943]
[1749668629186,26.0,163.01,162.94,14.46085943]
[1749668629386,14.46085943,162.99,162.94,14.46085943]
[1749668629777,6.0113,163.04,162.98,14.46085943]
[1749668629976,4.65135961,163.07,162.99,14.46085943]
[1749668630171,14.46085943,163.04,162.98,0.14216157]
[1749668630399,14.46085943,163.02,162.98,0.14216157]
[1749668630695,14.46085943,163.02,162.99,0.28432314]
[1749668630993,14.46085943,163.03,162.99,0.28432314]
[1749668631790,14.46085943,163.03,162.98,14.603021]
[1749668632092,26.0,163.05,162.95,1.5558]
[1749668632093,14.46085943,162.99,162.95,0.14216157]
[1749668632269,14.46085943,162.98,162.94,28.02]
[1749668632470,26.0,163.01,162.92,20.49345943]
[1749668632471,14.46085943,162.97,162.92,20.49345943]
[1749668632800,14.46085943,162.97,162.93,0.42648471]
[1749668633185,14.46085943,162.97,162.92,48.49345943]
[1749668633377,14.46085943,162.97,162.93,0.42648471]
[1749668633878,14.46085943,162.97,162.93,0.28432314]
[1749668634077,14.46085943,162.97,162.93,0.42648471]
[1749668634484,14.46085943,162.96,162.93,0.42648471]
[1749668635406,14.46085943,162.95,162.92,0.42648471]
[1749668635987,1.5477,163.0,162.92,0.42648471]
[1749668636199,14.46085943,162.95,162.92,0.42648471]
[1749668636391,1.5477,163.0,162.92,0.42648471]
[1749668636583,14.46085943,162.95,162.92,0.42648471]
[1749668636975,14.46085943,162.95,162.91,1.6061]
[1749668637475,14.46085943,162.95,162.91,16.06695943]
[1749668638589,14.46085943,162.95,162.91,1.6061]
[1749668638898,14.46085943,162.95,162.91,16.06695943]
[1749668639099,14.46085943,162.94,162.9,14.46085943]
[1749668639273,14.46085943,162.93,162.89,0.42648471]
[1749668640270,14.46085943,162.92,162.87,16.04645943]
[1749668640495,14.46085943,162.92,162.88,0.42648471]
[1749668640872,14.46085943,162.92,162.88,14.88734414]
[1749668641076,14.46085943,162.92,162.88,0.42648471]
[1749668641275,14.46085943,162.92,162.88,14.88734414]
[1749668642919,14.46085943,162.96,162.88,14.88734414]
[1749668642920,14.46085943,162.93,162.88,14.88734414]
[1749668643213,14.46085943,162.92,162.88,14.88734414]
[1749668644491,14.46085943,162.92,162.88,0.42648471]
[1749668644683,14.46085943,162.92,162.88,14.88734414]
[1749668645110,40.46085943,162.96,162.88,14.88734414]
[1749668645408,14.46085943,162.92,162.88,14.88734414]
[1749668646002,40.46085943,162.96,162.88,14.88734414]
[1749668646213,14.46085943,162.92,162.88,14.88734414]
[1749668646588,14.46085943,162.92,162.88,0.42648471]
[1749668646783,14.46085943,162.92,162.88,14.88734414]
[1749668647404,14.46085943,162.91,162.88,0.42648471]
[1749668648117,14.46085943,162.89,162.83,1.6663]
[1749668648435,26.0,162.91,162.84,14.603021]
[1749668648610,14.46085943,162.89,162.85,14.46085943]
[1749668649519,26.0,162.91,162.86,14.603021]
[1749668649709,14.46085943,162.9,162.86,14.603021]
[1749668650126,14.46085943,162.91,162.87,0.28432314]
[1749668650507,14.46085943,162.91,162.87,14.74518257]
[1749668650709,14.46085943,162.91,162.87,0.28432314]
[1749668652336,14.46085943,162.9,162.87,0.28432314]
[1749668652645,26.0,162.93,162.87,0.28432314]
[1749668652940,14.46085943,162.9,162.87,0.28432314]
[1749668653634,14.46085943,162.89,162.85,0.42648471]
[1749668655135,14.46085943,162.89,162.85,14.88734414]
[1749668655339,26.0,162.91,162.85,14.88734414]
[1749668655542,14.46085943,162.9,162.85,14.88734414]
[1749668656441,14.46085943,162.9,162.85,0.42648471]
[1749668656615,14.46085943,162.89,162.85,0.42648471]
[1749668657141,14.46085943,162.89,162.85,14.88734414]
[1749668659547,14.46085943,162.89,162.85,0.42648471]
[1749668659731,14.46085943,162.89,162.85,0.28432314]
[1749668660135,14.46085943,162.88,162.83,43.56715943]
[1749668660447,14.46085943,162.88,162.84,0.14216157]
[1749668660647,14.46085943,162.85,162.84,0.14216157]
[1749668661229,14.46085943,162.85,162.8,25.32939016]
[1749668661542,14.46085943,162.84,162.81,0.28432314]
[1749668661847,14.46085943,162.84,162.81,0.42648471]
[1749668662038,14.46085943,162.83,162.81,0.42648471]
[1749668662247,27.6386,162.88,162.8,52.74939016]
[1749668662552,14.46085943,162.85,162.81,0.42648471]
[1749668662871,14.46085943,162.84,162.81,0.42648471]
[1749668663226,14.46085943,162.82,162.76,8.33333333]
[1749668663430,14.46085943,162.82,162.76,16.66666666]
[1749668663431,14.46085943,162.78,162.76,16.66666666]
[1749668663735,14.46085943,162.79,162.76,16.66666666]
[1749668663941,27.6386,162.82,162.76,16.66666666]
[1749668663942,14.46085943,162.77,162.76,16.66666666]
[1749668664331,14.46085943,162.78,162.76,16.66666666]
[1749668665255,8.068,162.82,162.76,16.66666666]
[1749668665256,1.6386,162.82,162.76,16.66666666]
[1749668665439,14.46085943,162.81,162.76,31.12752609]
[1749668665634,14.46085943,162.8,162.76,31.12752609]
[1749668666733,26.0,162.83,162.76,16.66666666]
[1749668666933,14.46085943,162.81,162.77,0.42648471]
[1749668667469,1.5606,162.86,162.8,14.46085943]
[1749668667631,29.07573949,162.87,162.8,14.46085943]
[1749668667944,14.46085943,162.86,162.82,14.46085943]
[1749668668248,14.46085943,162.85,162.81,14.74518257]
[1749668668458,14.46085943,162.87,162.82,14.603021]
[1749668668627,14.46085943,162.86,162.82,14.603021]
[1749668669560,14.46085943,162.86,162.82,0.14216157]
[1749668670058,14.46085943,162.86,162.82,14.603021]
[1749668670652,40.46085943,162.87,162.82,14.603021]
[1749668672753,40.46085943,162.87,162.82,20.74476799]
[1749668673265,40.46085943,162.87,162.82,14.603021]
[1749668673564,14.46085943,162.87,162.83,14.46085943]
[1749668674068,3.1121706,162.88,162.82,6.28368456]
[1749668674240,14.46085943,162.87,162.83,14.46085943]
[1749668674849,26.0,162.89,162.84,14.88734414]
[1749668675049,14.46085943,162.88,162.84,14.88734414]
[1749668676236,14.46085943,162.88,162.83,14.46085943]
[1749668676437,14.46085943,162.85,162.81,0.14216157]
[1749668676639,14.46085943,162.84,162.8,27.36]
[1749668676850,26.0,162.87,162.79,10.54335356]
[1749668676851,14.46085943,162.83,162.79,10.54335356]
[1749668677661,14.46085943,162.83,162.79,25.00421299]
[1749668678074,26.0,162.87,162.81,14.46085943]
[1749668678284,26.0,162.87,162.8,0.42648471]
[1749668678285,40.46085943,162.87,162.82,14.46085943]
[1749668678662,14.46085943,162.86,162.82,14.46085943]
[1749668678969,14.46085943,162.86,162.82,0.42648471]
[1749668679471,14.46085943,162.85,162.8,0.42648471]
[1749668679882,14.46085943,162.85,162.81,14.46085943]
[1749668680796,26.0,162.87,162.82,0.42648471]
[1749668680960,26.0,162.87,162.83,14.46085943]
[1749668681166,14.46085943,162.86,162.82,14.603021]
[1749668681489,40.46085943,162.87,162.82,14.603021]
[1749668681690,14.46085943,162.86,162.82,14.603021]
[1749668681869,40.46085943,162.87,162.82,14.603021]
[1749668682067,40.46085943,162.87,162.82,0.14216157]
[1749668682269,40.46085943,162.87,162.82,14.603021]
[1749668682473,14.46085943,162.88,162.84,14.46085943]
[1749668682680,19.12446472,162.9,162.85,14.46085943]
[1749668684068,14.46085943,162.88,162.84,14.88734414]
[1749668685480,30.66360529,162.9,162.84,14.88734414]
[1749668685894,14.46085943,162.89,162.84,21.02831681]
[1749668686490,43.48376472,162.9,162.85,14.46085943]
[1749668686891,14.46085943,162.91,162.87,14.46085943]
[1749668687407,7.1,162.93,162.87,14.46085943]
[1749668687595,14.46085943,162.91,162.87,14.46085943]
[1749668687990,33.1,162.93,162.87,14.46085943]
[1749668688198,14.46085943,162.91,162.87,14.46085943]
[1749668688905,14.46085943,162.91,162.86,0.42648471]
[1749668689106,14.46085943,162.91,162.87,14.46085943]
[1749668689603,17.57901282,162.93,162.88,14.46085943]
[1749668689814,14.46085943,162.94,162.9,14.46085943]
[1749668690375,14.46085943,162.94,162.89,14.46085943]
[1749668691211,26.0,162.95,162.89,14.46085943]
[1749668691525,40.46085943,162.95,162.88,6.56594448]
[1749668691678,14.46085943,162.95,162.91,14.46085943]
[1749668692085,26.0,162.97,162.91,14.46085943]
[1749668692312,14.46085943,162.96,162.91,14.46085943]
[1749668692713,29.10527352,162.97,162.88,6.56594448]
[1749668692714,14.46085943,162.95,162.88,6.56594448]
[1749668692903,29.10527352,162.97,162.88,6.56594448]
[1749668692904,14.46085943,162.94,162.9,14.46085943]
[1749668693420,14.46085943,162.95,162.9,14.46085943]
[1749668693795,29.10527352,162.97,162.9,14.46085943]
[1749668693995,14.46085943,162.95,162.9,14.46085943]
[1749668694386,14.46085943,162.95,162.9,14.88734414]
[1749668694792,14.46085943,162.96,162.91,14.46085943]
[1749668695996,14.46085943,162.96,162.92,14.46085943]
[1749668697415,29.10527352,162.97,162.92,14.46085943]
[1749668697796,43.56613295,162.97,162.92,14.46085943]
[1749668698610,14.46085943,162.96,162.92,14.46085943]
[1749668700311,14.46085943,162.93,162.89,0.14216157]
[1749668700514,14.46085943,162.9,162.87,10.91917632]
[1749668700705,14.46085943,162.89,162.85,20.60145836]
[1749668701021,14.46085943,162.89,162.84,26.42162868]
[1749668701220,14.46085943,162.89,162.86,0.42648471]
[1749668701426,14.46085943,162.88,162.84,14.46085943]
[1749668701936,26.0,162.94,162.84,14.46085943]
[1749668702225,14.46085943,162.88,162.83,14.88734414]
[1749668702644,14.46085943,162.87,162.82,14.46085943]
[1749668702803,14.46085943,162.86,162.82,14.46085943]
[1749668703308,26.0,162.9,162.85,14.46085943]
[1749668703513,14.46085943,162.91,162.86,14.46085943]
[1749668703912,14.46085943,162.91,162.87,14.46085943]
[1749668704108,40.46085943,162.92,162.87,14.46085943]
[1749668704724,14.46085943,162.92,162.88,14.46085943]
[1749668705018,14.46085943,162.93,162.88,14.46085943]
[1749668705219,14.46085943,162.93,162.89,14.46085943]
[1749668705726,14.46085943,162.95,162.9,14.46085943]
[1749668705940,14.46085943,162.96,162.91,14.88734414]
[1749668706099,3.10527352,162.97,162.91,14.88734414]
[1749668706299,12.774,162.99,162.93,14.46085943]
[1749668706531,12.774,162.99,162.91,0.42648471]
[1749668706532,14.46085943,162.96,162.92,14.46085943]
[1749668707322,38.774,162.99,162.92,14.46085943]
[1749668707522,14.46085943,162.96,162.92,14.46085943]
[1749668708409,14.46085943,162.97,162.92,14.46085943]
[1749668708612,14.46085943,162.96,162.92,14.46085943]
[1749668709246,14.46085943,162.98,162.93,14.46085943]
[1749668709534,14.46085943,163.0,162.96,14.46085943]
[1749668709727,14.46085943,162.99,162.94,14.46085943]
[1749668710938,14.46085943,162.98,162.94,14.46085943]
[1749668711417,26.0,163.0,162.94,14.46085943]
[1749668711418,14.46085943,162.99,162.94,14.46085943]
[1749668711614,14.46085943,162.99,162.95,14.46085943]
[1749668711822,40.46085943,163.0,162.95,14.46085943]
[1749668712343,14.46085943,162.99,162.92,19.07613357]
[1749668712712,14.46085943,162.98,162.91,26.78]
[1749668712908,14.46085943,162.96,162.92,0.42648471]
[1749668713114,14.46085943,162.93,162.88,14.46085943]
[1749668713332,14.46085943,162.93,162.87,1.5403]
[1749668713639,14.46085943,162.92,162.88,0.42648471]
[1749668713806,14.46085943,162.93,162.88,14.46085943]
[1749668715144,14.46085943,162.93,162.89,0.42648471]
[1749668715637,14.46085943,162.96,162.91,14.46085943]
[1749668715837,14.46085943,162.95,162.91,14.46085943]
[1749668716041,14.46085943,162.96,162.92,0.42648471]
[1749668718445,14.46085943,162.95,162.92,0.42648471]
[1749668718938,14.46085943,162.94,162.91,0.42648471]
[1749668719939,14.46085943,162.95,162.91,14.88734414]
[1749668720245,14.46085943,162.95,162.91,0.42648471]
[1749668721737,14.46085943,162.92,162.87,18.64964886]
[1749668721939,14.46085943,162.96,162.88,0.14216157]
[1749668722122,14.46085943,162.92,162.88,14.88734414]
[1749668722323,14.46085943,162.93,162.88,14.88734414]
[1749668722667,14.46085943,162.93,162.89,14.46085943]
[1749668723551,14.46085943,162.93,162.88,14.88734414]
[1749668723753,14.46085943,162.93,162.88,0.42648471]
[1749668723951,14.46085943,162.93,162.88,14.88734414]
[1749668724469,26.0,162.97,162.88,14.88734414]
[1749668724768,14.46085943,162.93,162.88,14.88734414]
[1749668725164,14.46085943,162.91,162.88,0.42648471]
[1749668727473,14.46085943,162.93,162.89,14.603021]
[1749668727677,14.46085943,162.92,162.87,14.46085943]
[1749668727862,14.46085943,162.91,162.86,14.74518257]
[1749668728050,14.46085943,162.92,162.88,14.46085943]
[1749668728254,14.46085943,162.93,162.89,14.74518257]
[1749668728469,14.46085943,162.93,162.89,0.28432314]
[1749668728777,14.46085943,162.92,162.88,0.42648471]
[1749668729150,14.46085943,162.91,162.87,14.46085943]
[1749668729357,14.46085943,162.9,162.86,0.28432314]
[1749668729677,14.46085943,162.89,162.85,0.14216157]
[1749668729856,14.46085943,162.89,162.85,0.28432314]
[1749668730165,14.46085943,162.89,162.85,0.42648471]
[1749668730369,26.0,162.92,162.85,0.42648471]
[1749668730370,40.46085943,162.9,162.85,14.46085943]
[1749668731678,14.46085943,162.89,162.84,0.14216157]